[Event "*** Titled Tuesday Blitz"]
[Site "Chess.com"]
[Date "2019.11.05"]
[Round "3"]
[White "Siemba"]
[Black "shnitez"]
[Result "0-1"]
[WhiteElo "2221"]
[BlackElo "2512"]
[TimeControl "180+2"]
[EndTime "13:39:26 PST"]
[Termination "shnitez won by resignation"]

1. e4 {[%clk 0:03:01.9]} 1... e5 {[%clk 0:02:59.8]} 2. Nf3 {[%clk 0:02:54.3]}
2... Nc6 {[%clk 0:02:55.1]} 3. d4 {[%clk 0:02:54.9]} 3... exd4 {[%clk
0:02:55.7]} 4. Nxd4 {[%clk 0:02:50.6]} 4... Bc5 {[%clk 0:02:55.5]} 5. Nxc6
{[%clk 0:02:48.4]} 5... Qf6 {[%clk 0:02:55.6]} 6. Qf3 {[%clk 0:02:42.1]} 6...
dxc6 {[%clk 0:02:56.4]} 7. Nc3 {[%clk 0:02:37.8]} 7... Bd4 {[%clk 0:02:52]} 8.
Bd2 {[%clk 0:02:37.5]} 8... Be6 {[%clk 0:02:48]} 9. O-O-O {[%clk 0:02:36.6]}
9... O-O-O {[%clk 0:02:48.9]} 10. Qg3 {[%clk 0:02:31.2]} 10... Bxf2 {[%clk
0:02:46.5]} 11. Qf3 {[%clk 0:02:29.9]} 11... Qxf3 {[%clk 0:02:36.9]} 12. gxf3
{[%clk 0:02:31.8]} 12... Bh4 {[%clk 0:02:33.8]} 13. Bd3 {[%clk 0:02:29.4]} 13...
Ne7 {[%clk 0:02:31.9]} 14. Rhg1 {[%clk 0:02:26.6]} 14... g6 {[%clk 0:02:32.8]}
15. e5 {[%clk 0:02:17.6]} 15... Nf5 {[%clk 0:02:11.1]} 16. Ne4 {[%clk
0:02:16.4]} 16... Rhe8 {[%clk 0:01:59.6]} 17. f4 {[%clk 0:02:08]} 17... b6
{[%clk 0:01:53.2]} 18. b3 {[%clk 0:01:56]} 18... Kb7 {[%clk 0:01:52.4]} 19. Kb2
{[%clk 0:01:56.6]} 19... a5 {[%clk 0:01:50.9]} 20. a4 {[%clk 0:01:57]} 20... Rd7
{[%clk 0:01:40.3]} 21. Rdf1 {[%clk 0:01:44.2]} 21... Red8 {[%clk 0:01:39.3]} 22.
Bc3 {[%clk 0:01:24.6]} 22... Be7 {[%clk 0:01:31.9]} 23. Re1 {[%clk 0:01:11.8]}
23... Nd4 {[%clk 0:01:24.1]} 24. Bxd4 {[%clk 0:00:36.2]} 24... Rxd4 {[%clk
0:01:23.1]} 25. Rg3 {[%clk 0:00:32.3]} 25... Bh4 {[%clk 0:01:15.4]} 26. Rh1
{[%clk 0:00:30.9]} 26... Bxg3 {[%clk 0:01:15.8]} 27. hxg3 {[%clk 0:00:32.8]}
27... Bd5 {[%clk 0:01:08.6]} 28. Re1 {[%clk 0:00:28.1]} 28... Bxe4 {[%clk
0:01:07.8]} 29. Bxe4 {[%clk 0:00:30]} 29... Rd2 {[%clk 0:00:50.9]} 30. Rh1
{[%clk 0:00:30.1]} 30... h5 {[%clk 0:00:49.5]} 31. Kc3 {[%clk 0:00:19.7]} 31...
Re2 {[%clk 0:00:49.3]} 32. Bd3 {[%clk 0:00:20.6]} 32... Rg2 {[%clk 0:00:45.4]}
33. Rh3 {[%clk 0:00:21.8]} 33... Rg1 {[%clk 0:00:30.8]} 34. e6 {[%clk
0:00:22.1]} 34... Rxd3+ {[%clk 0:00:25.1]} 35. Kxd3 {[%clk 0:00:18.3]} 35...
fxe6 {[%clk 0:00:27]} 36. Ke4 {[%clk 0:00:17.9]} 36... Re1+ {[%clk 0:00:27.3]}
37. Kd4 {[%clk 0:00:18.7]} 37... Re2 {[%clk 0:00:26]} 38. Kd3 {[%clk 0:00:17.9]}
38... Rg2 {[%clk 0:00:25.9]} 39. c3 {[%clk 0:00:17.7]} 39... Rb2 {[%clk
0:00:25.9]} 40. Kc4 {[%clk 0:00:18.8]} 40... b5+ {[%clk 0:00:22.9]} 41. axb5
{[%clk 0:00:19.5]} 41... cxb5+ {[%clk 0:00:24.8]} 42. Kxb5 {[%clk 0:00:19.9]}
42... Rxb3+ {[%clk 0:00:25.9]} 43. Kxa5 {[%clk 0:00:21.3]} 43... Rxc3 {[%clk
0:00:27]} 44. Kb4 {[%clk 0:00:21.7]} 44... Rf3 {[%clk 0:00:27.4]} 45. Kc4 {[%clk
0:00:22.9]} 45... Kc6 {[%clk 0:00:28.3]} 46. Kd4 {[%clk 0:00:24]} 46... Kd6
{[%clk 0:00:29.5]} 47. Ke4 {[%clk 0:00:25.4]} 47... Ra3 {[%clk 0:00:30.5]} 48.
Kd4 {[%clk 0:00:17.1]} 48... c5+ {[%clk 0:00:30.8]} 49. Kc4 {[%clk 0:00:18.5]}
49... Kc6 {[%clk 0:00:31.3]} 50. Rh1 {[%clk 0:00:12]} 50... Rxg3 {[%clk
0:00:31.9]} 51. Re1 {[%clk 0:00:13.6]} 51... Kd6 {[%clk 0:00:31.6]} 52. Rd1+
{[%clk 0:00:15]} 52... Ke7 {[%clk 0:00:32.5]} 53. Kxc5 {[%clk 0:00:16.2]} 53...
Rf3 {[%clk 0:00:33.2]} 54. Rd4 {[%clk 0:00:15.9]} 54... Rc3+ {[%clk 0:00:33.8]}
55. Kb4 {[%clk 0:00:15.2]} 55... Rc1 {[%clk 0:00:34.7]} 56. Re4 {[%clk 0:00:14]}
56... Kf6 {[%clk 0:00:35.4]} 57. Re5 {[%clk 0:00:15.1]} 57... Rf1 {[%clk
0:00:34.8]} 0-1

[Event "*** Titled Tuesday Blitz"]
[Site "Chess.com"]
[Date "2019.11.05"]
[Round "3"]
[White "CarlssonLudvig"]
[Black "MikeSailer"]
[Result "1-0"]
[WhiteElo "2485"]
[BlackElo "2201"]
[TimeControl "180+2"]
[EndTime "13:39:31 PST"]
[Termination "CarlssonLudvig won by resignation"]

1. d4 {[%clk 0:03:01.9]} 1... d5 {[%clk 0:03:00.8]} 2. c4 {[%clk 0:03:02.7]}
2... Bf5 {[%clk 0:03:01.4]} 3. cxd5 {[%clk 0:03:03.4]} 3... Bxb1 {[%clk
0:03:02.1]} 4. Qa4+ {[%clk 0:03:04.9]} 4... c6 {[%clk 0:03:02.9]} 5. Rxb1 {[%clk
0:02:59.4]} 5... Qxd5 {[%clk 0:03:03.3]} 6. Nf3 {[%clk 0:02:50.3]} 6... Nf6
{[%clk 0:03:02]} 7. e3 {[%clk 0:02:47.1]} 7... e6 {[%clk 0:03:01.5]} 8. Be2
{[%clk 0:02:46.7]} 8... b5 {[%clk 0:02:48.9]} 9. Qb3 {[%clk 0:02:37.5]} 9...
Qxb3 {[%clk 0:02:44.4]} 10. axb3 {[%clk 0:02:39.4]} 10... Bb4+ {[%clk
0:02:38.6]} 11. Bd2 {[%clk 0:02:35.8]} 11... Bxd2+ {[%clk 0:02:28.4]} 12. Nxd2
{[%clk 0:02:37.7]} 12... Na6 {[%clk 0:02:20]} 13. Nf3 {[%clk 0:02:24.6]} 13...
Nb4 {[%clk 0:02:19.4]} 14. Ne5 {[%clk 0:02:25.4]} 14... Nd7 {[%clk 0:02:08]} 15.
Nf3 {[%clk 0:02:17.2]} 15... Ke7 {[%clk 0:01:41.6]} 16. Kd2 {[%clk 0:02:16.2]}
16... Nf6 {[%clk 0:01:33.4]} 17. Bd3 {[%clk 0:02:17.1]} 17... Nxd3 {[%clk
0:01:29.3]} 18. Kxd3 {[%clk 0:02:18.5]} 18... Nd5 {[%clk 0:01:29.5]} 19. Rhc1
{[%clk 0:02:16.2]} 19... Nb4+ {[%clk 0:01:25.5]} 20. Ke2 {[%clk 0:02:17.1]}
20... f6 {[%clk 0:01:22.5]} 21. Nd2 {[%clk 0:02:13.8]} 21... Rhc8 {[%clk
0:01:10.5]} 22. Ne4 {[%clk 0:02:14.3]} 22... a5 {[%clk 0:01:05.9]} 23. Nc5
{[%clk 0:02:14.8]} 23... Na6 {[%clk 0:01:00.3]} 24. Nd3 {[%clk 0:02:14.3]} 24...
Nb4 {[%clk 0:00:59.5]} 25. Nxb4 {[%clk 0:02:08.6]} 25... axb4 {[%clk 0:01:00.5]}
26. Ra1 {[%clk 0:02:10.5]} 26... Kd6 {[%clk 0:00:59.5]} 27. Kd2 {[%clk
0:02:10.2]} 27... e5 {[%clk 0:00:56.7]} 28. dxe5+ {[%clk 0:02:10.1]} 28... fxe5
{[%clk 0:00:54.9]} 29. e4 {[%clk 0:02:07.9]} 29... g5 {[%clk 0:00:53.6]} 30. h3
{[%clk 0:02:02]} 30... h5 {[%clk 0:00:54.8]} 31. Ke3 {[%clk 0:02:02.5]} 31...
Rf8 {[%clk 0:00:31.4]} 32. Rd1+ {[%clk 0:01:59.8]} 32... Kc5 {[%clk 0:00:32.8]}
33. Rac1+ {[%clk 0:02:00]} 33... Kb6 {[%clk 0:00:34]} 34. Rd6 {[%clk 0:02:01]}
34... Rfc8 {[%clk 0:00:27.7]} 35. Re6 {[%clk 0:01:52.1]} 35... Ra2 {[%clk
0:00:26.5]} 36. Rc2 {[%clk 0:01:50.4]} 36... g4 {[%clk 0:00:25]} 37. h4 {[%clk
0:01:45.7]} 37... Ra1 {[%clk 0:00:25.3]} 38. Rxe5 {[%clk 0:01:45.9]} 38... Re1+
{[%clk 0:00:25.3]} 39. Re2 {[%clk 0:01:46.8]} 39... Rg1 {[%clk 0:00:24.8]} 40.
g3 {[%clk 0:01:48.1]} 40... Rf8 {[%clk 0:00:19.2]} 41. Rxh5 {[%clk 0:01:48.3]}
41... Rf3+ {[%clk 0:00:17.4]} 42. Kd4 {[%clk 0:01:46.7]} 42... Rd1+ {[%clk
0:00:16.8]} 43. Ke5 {[%clk 0:01:47.2]} 43... Rxb3 {[%clk 0:00:13.4]} 44. Kf6
{[%clk 0:01:43.6]} 44... Rf3+ {[%clk 0:00:11.9]} 45. Ke7 {[%clk 0:01:43.8]}
45... c5 {[%clk 0:00:13]} 46. e5 {[%clk 0:01:42.9]} 46... c4 {[%clk 0:00:13.3]}
47. e6 {[%clk 0:01:44.1]} 47... c3 {[%clk 0:00:13.8]} 48. Ke8 {[%clk 0:01:43.8]}
48... Rd2 {[%clk 0:00:11.5]} 49. Rxd2 {[%clk 0:01:42.5]} 49... cxd2 {[%clk
0:00:12.8]} 50. Rd5 {[%clk 0:01:44.4]} 50... Rxf2 {[%clk 0:00:09.1]} 51. e7
{[%clk 0:01:44.6]} 51... Kc6 {[%clk 0:00:10.8]} 52. Rd3 {[%clk 0:01:45.3]} 52...
Kc5 {[%clk 0:00:05.2]} 53. b3 {[%clk 0:01:45.8]} 53... Re2 {[%clk 0:00:04.3]}
54. h5 {[%clk 0:01:44.2]} 54... Re3 {[%clk 0:00:04.1]} 55. Rxd2 {[%clk
0:01:44.4]} 55... Rxb3 {[%clk 0:00:05.6]} 56. Kf8 {[%clk 0:01:44.9]} 56... Rf3+
{[%clk 0:00:06.6]} 57. Kg7 {[%clk 0:01:46.1]} 57... Re3 {[%clk 0:00:08]} 58. Kf7
{[%clk 0:01:43.8]} 58... Rf3+ {[%clk 0:00:09.5]} 59. Ke8 {[%clk 0:01:43.1]}
59... Rxg3 {[%clk 0:00:11.1]} 60. h6 {[%clk 0:01:44.3]} 60... Rh3 {[%clk
0:00:12.6]} 61. Kf7 {[%clk 0:01:45.1]} 61... Rf3+ {[%clk 0:00:14.2]} 62. Kg7
{[%clk 0:01:44.8]} 62... Re3 {[%clk 0:00:15.3]} 63. Rd7 {[%clk 0:01:37]} 63...
b3 {[%clk 0:00:16.6]} 64. Kf7 {[%clk 0:01:27]} 64... b2 {[%clk 0:00:17]} 65. Rd1
{[%clk 0:01:27]} 65... Kc4 {[%clk 0:00:16.6]} 66. e8=Q {[%clk 0:01:26.2]} 66...
Rxe8 {[%clk 0:00:17.2]} 67. Kxe8 {[%clk 0:01:28.1]} 67... Kc3 {[%clk 0:00:18.8]}
68. h7 {[%clk 0:01:29.5]} 68... Kc2 {[%clk 0:00:20.3]} 69. Rg1 {[%clk
0:01:29.9]} 69... b1=Q {[%clk 0:00:21.2]} 70. Rxb1 {[%clk 0:01:30.9]} 70... Kxb1
{[%clk 0:00:23.1]} 71. h8=Q {[%clk 0:01:32.8]} 1-0

[Event "*** Titled Tuesday Blitz"]
[Site "Chess.com"]
[Date "2019.11.05"]
[Round "3"]
[White "Torrentec"]
[Black "HrvojeZagreb"]
[Result "1-0"]
[WhiteElo "2358"]
[BlackElo "2160"]
[TimeControl "180+2"]
[EndTime "13:39:33 PST"]
[Termination "Torrentec won by resignation"]

1. e4 {[%clk 0:03:01.9]} 1... e6 {[%clk 0:03:00.7]} 2. d4 {[%clk 0:02:59.4]}
2... d5 {[%clk 0:03:01.9]} 3. e5 {[%clk 0:02:53.2]} 3... c5 {[%clk 0:03:02.5]}
4. c3 {[%clk 0:02:48]} 4... Nc6 {[%clk 0:03:03.3]} 5. Nf3 {[%clk 0:02:21.5]}
5... Bd7 {[%clk 0:03:03.9]} 6. Bb5 {[%clk 0:02:16.3]} 6... Nxe5 {[%clk 0:03:03]}
7. Bxd7+ {[%clk 0:02:09.3]} 7... Nxd7 {[%clk 0:03:04.9]} 8. O-O {[%clk
0:01:56.2]} 8... Ngf6 {[%clk 0:03:05.3]} 9. Re1 {[%clk 0:01:56.7]} 9... Bd6
{[%clk 0:03:04.9]} 10. Bg5 {[%clk 0:01:57.6]} 10... O-O {[%clk 0:03:04.4]} 11.
Bh4 {[%clk 0:01:58.7]} 11... Qc7 {[%clk 0:03:03.6]} 12. Bg3 {[%clk 0:01:59.7]}
12... Rfe8 {[%clk 0:03:00.4]} 13. Nbd2 {[%clk 0:02:00.2]} 13... Bxg3 {[%clk
0:02:46.6]} 14. hxg3 {[%clk 0:02:02.1]} 14... cxd4 {[%clk 0:02:34]} 15. Nxd4
{[%clk 0:02:02.6]} 15... Qb6 {[%clk 0:02:33.7]} 16. Qc2 {[%clk 0:01:56.8]} 16...
Rac8 {[%clk 0:02:32.3]} 17. N2f3 {[%clk 0:01:57.3]} 17... Ne4 {[%clk 0:02:32.4]}
18. Re2 {[%clk 0:01:56.9]} 18... Rc7 {[%clk 0:02:15.2]} 19. Rae1 {[%clk
0:01:57.3]} 19... Rec8 {[%clk 0:02:15.4]} 20. Qc1 {[%clk 0:01:53.9]} 20... Ndc5
{[%clk 0:02:13.9]} 21. Qe3 {[%clk 0:01:49.7]} 21... Nd7 {[%clk 0:02:08.3]} 22.
Ng5 {[%clk 0:01:48.4]} 22... Nxg5 {[%clk 0:02:04.9]} 23. Qxg5 {[%clk 0:01:50.3]}
23... Nf8 {[%clk 0:02:03]} 24. Nf3 {[%clk 0:01:46.2]} 24... Qd6 {[%clk
0:01:44.5]} 25. Qh5 {[%clk 0:01:44.8]} 25... b5 {[%clk 0:01:38.4]} 26. Ng5
{[%clk 0:01:45.6]} 26... a5 {[%clk 0:01:36.1]} 27. g4 {[%clk 0:01:41.5]} 27...
b4 {[%clk 0:01:36.6]} 28. cxb4 {[%clk 0:01:42.2]} 28... axb4 {[%clk 0:01:38.2]}
29. Re3 {[%clk 0:01:35.8]} 29... Re7 {[%clk 0:01:17.8]} 30. Rh3 {[%clk
0:01:35.7]} 30... h6 {[%clk 0:01:09.6]} 31. Nf3 {[%clk 0:01:37]} 31... Qf4
{[%clk 0:01:06.9]} 32. g5 {[%clk 0:01:36.5]} 32... Ng6 {[%clk 0:01:04.4]} 33.
gxh6 {[%clk 0:01:36.2]} 33... gxh6 {[%clk 0:00:59.7]} 34. Rg3 {[%clk 0:01:31.4]}
34... Kf8 {[%clk 0:00:51.3]} 35. Rg4 {[%clk 0:01:31.5]} 35... Qf6 {[%clk
0:00:33.4]} 36. Qxh6+ {[%clk 0:01:31.2]} 36... Qg7 {[%clk 0:00:34]} 37. Qd2
{[%clk 0:01:24.6]} 37... Rc4 {[%clk 0:00:24.3]} 38. Rxc4 {[%clk 0:01:21]} 38...
dxc4 {[%clk 0:00:26.2]} 39. Qxb4 {[%clk 0:01:09.3]} 39... Nf4 {[%clk 0:00:27.2]}
40. g3 {[%clk 0:01:04.4]} 40... Nd3 {[%clk 0:00:25.6]} 41. Qb8+ {[%clk
0:01:05.3]} 41... Re8 {[%clk 0:00:26.2]} 42. Qd6+ {[%clk 0:01:06.9]} 42... Kg8
{[%clk 0:00:27.4]} 43. Re4 {[%clk 0:01:02.7]} 43... f5 {[%clk 0:00:21.4]} 44.
Rxe6 {[%clk 0:01:00.1]} 44... Rxe6 {[%clk 0:00:12.5]} 45. Qxe6+ {[%clk 0:01:02]}
45... Qf7 {[%clk 0:00:13.7]} 46. Qc8+ {[%clk 0:00:53.2]} 46... Kg7 {[%clk
0:00:13.4]} 47. Ng5 {[%clk 0:00:54.6]} 47... Qd5 {[%clk 0:00:13]} 48. Ne6+
{[%clk 0:00:41.3]} 48... Kf6 {[%clk 0:00:12.8]} 49. Nf4 {[%clk 0:00:27.7]} 49...
Qf3 {[%clk 0:00:12.2]} 50. Qh8+ {[%clk 0:00:20.5]} 50... Kf7 {[%clk 0:00:12.7]}
51. Qd4 {[%clk 0:00:20.5]} 51... Ne1 {[%clk 0:00:12.5]} 52. Qxc4+ {[%clk
0:00:19.9]} 52... Kg7 {[%clk 0:00:13.4]} 53. Qc3+ {[%clk 0:00:20.7]} 53... Kh6
{[%clk 0:00:14]} 54. Qxe1 {[%clk 0:00:21.6]} 54... Qc6 {[%clk 0:00:14.4]} 55.
Qe3 {[%clk 0:00:22.5]} 55... Kg7 {[%clk 0:00:15]} 56. Nd3 {[%clk 0:00:22.9]}
56... f4 {[%clk 0:00:14.7]} 57. Qe5+ {[%clk 0:00:23.6]} 57... Kf8 {[%clk
0:00:15.2]} 58. Nxf4 {[%clk 0:00:24.9]} 58... Qc1+ {[%clk 0:00:15.9]} 59. Kg2
{[%clk 0:00:26.1]} 59... Qc6+ {[%clk 0:00:16.9]} 60. Kh3 {[%clk 0:00:27.2]} 1-0

[Event "*** Titled Tuesday Blitz"]
[Site "Chess.com"]
[Date "2019.11.05"]
[Round "3"]
[White "Firouzja2003"]
[Black "jlucasvf"]
[Result "1-0"]
[WhiteElo "3074"]
[BlackElo "2795"]
[TimeControl "180+2"]
[EndTime "13:39:39 PST"]
[Termination "Firouzja2003 won by resignation"]

1. e4 {[%clk 0:03:01.9]} 1... b5 {[%clk 0:02:59.2]} 2. Bxb5 {[%clk 0:02:55.9]}
2... Bb7 {[%clk 0:02:59.8]} 3. Nc3 {[%clk 0:02:41.1]} 3... f5 {[%clk 0:03:00.4]}
4. d3 {[%clk 0:02:34.2]} 4... Nf6 {[%clk 0:02:58.6]} 5. Qe2 {[%clk 0:02:27.7]}
5... fxe4 {[%clk 0:02:56.4]} 6. dxe4 {[%clk 0:02:29.6]} 6... e5 {[%clk 0:02:49]}
7. Nf3 {[%clk 0:02:29.6]} 7... Bb4 {[%clk 0:02:43.1]} 8. Nxe5 {[%clk 0:02:11.7]}
8... Qe7 {[%clk 0:02:43.8]} 9. Nd3 {[%clk 0:01:54]} 9... Bxc3+ {[%clk
0:02:44.6]} 10. bxc3 {[%clk 0:01:55.9]} 10... Qxe4 {[%clk 0:02:43.9]} 11. f3
{[%clk 0:01:50.8]} 11... Qxe2+ {[%clk 0:02:44.4]} 12. Kxe2 {[%clk 0:01:52.7]}
12... Nc6 {[%clk 0:02:24.1]} 13. Nc5 {[%clk 0:01:51]} 13... O-O-O {[%clk
0:02:23.1]} 14. Nxb7 {[%clk 0:01:52.1]} 14... Kxb7 {[%clk 0:02:24.5]} 15. Rb1
{[%clk 0:01:53]} 15... Rhe8+ {[%clk 0:02:24.7]} 16. Kf2 {[%clk 0:01:53.4]} 16...
Nd5 {[%clk 0:02:23.8]} 17. Bc4+ {[%clk 0:01:42.9]} 17... Nb6 {[%clk 0:02:24.8]}
18. Be3 {[%clk 0:01:41.2]} 18... d5 {[%clk 0:02:16.3]} 19. Bd3 {[%clk
0:01:39.9]} 19... Ne5 {[%clk 0:02:10]} 20. Bxh7 {[%clk 0:01:27.6]} 20... g6
{[%clk 0:02:10.5]} 21. Bd4 {[%clk 0:01:24.9]} 21... Rd7 {[%clk 0:01:48.6]} 22.
Rhe1 {[%clk 0:01:23.2]} 22... Rxh7 {[%clk 0:01:41.9]} 23. Rxe5 {[%clk
0:01:22.8]} 23... Rxe5 {[%clk 0:01:40.9]} 24. Bxe5 {[%clk 0:01:24.7]} 24... Kc6
{[%clk 0:01:42.3]} 25. Re1 {[%clk 0:01:14.5]} 25... Nc4 {[%clk 0:01:37.3]} 26.
Bd4 {[%clk 0:01:15.9]} 26... Kd7 {[%clk 0:01:36.1]} 27. Bxa7 {[%clk 0:00:57.9]}
27... Rxh2 {[%clk 0:01:36.7]} 28. Bc5 {[%clk 0:00:59.4]} 28... Rh8 {[%clk
0:01:35.6]} 29. Re7+ {[%clk 0:00:59.3]} 29... Kc6 {[%clk 0:01:36.7]} 30. Bb4
{[%clk 0:00:58.6]} 30... Ra8 {[%clk 0:01:37.1]} 31. a3 {[%clk 0:00:30.4]} 31...
Nxa3 {[%clk 0:01:37.3]} 32. Rg7 {[%clk 0:00:26.5]} 32... Nxc2 {[%clk 0:01:30.8]}
33. Rxg6+ {[%clk 0:00:27.8]} 33... Kb5 {[%clk 0:01:32.5]} 34. Be7 {[%clk
0:00:29.1]} 34... Ra2 {[%clk 0:01:31.3]} 35. g4 {[%clk 0:00:30.2]} 35... c5
{[%clk 0:01:29.3]} 36. Rg8 {[%clk 0:00:28.7]} 36... Kc4 {[%clk 0:01:21.6]} 37.
Kg3 {[%clk 0:00:25.6]} 37... Ne1 {[%clk 0:01:13.3]} 38. Rc8 {[%clk 0:00:20.8]}
38... Rg2+ {[%clk 0:01:09.3]} 39. Kh3 {[%clk 0:00:22.2]} 39... Kxc3 {[%clk
0:00:58.8]} 40. Bxc5 {[%clk 0:00:23.4]} 40... Kd3 {[%clk 0:00:50.7]} 41. Bb4
{[%clk 0:00:24.1]} 41... Rc2 {[%clk 0:00:49.1]} 42. Rxc2 {[%clk 0:00:17.2]}
42... Nxc2 {[%clk 0:00:51]} 43. Ba5 {[%clk 0:00:16.6]} 43... Nd4 {[%clk
0:00:40.1]} 44. Kg3 {[%clk 0:00:17.7]} 44... Nc6 {[%clk 0:00:41.5]} 45. Bb6
{[%clk 0:00:15.3]} 45... Ke2 {[%clk 0:00:41.1]} 46. g5 {[%clk 0:00:16.1]} 46...
d4 {[%clk 0:00:42.6]} 47. Bc7 {[%clk 0:00:06.3]} 47... d3 {[%clk 0:00:39.2]} 48.
Bf4 {[%clk 0:00:07.4]} 48... Ne7 {[%clk 0:00:40.2]} 49. Kg4 {[%clk 0:00:06.3]}
49... Ng6 {[%clk 0:00:36.9]} 50. Bc1 {[%clk 0:00:06.8]} 50... Ne5+ {[%clk
0:00:33.5]} 51. Kf4 {[%clk 0:00:05.6]} 51... Nxf3 {[%clk 0:00:30.9]} 52. g6
{[%clk 0:00:06.9]} 52... Nh4 {[%clk 0:00:32.4]} 53. g7 {[%clk 0:00:06.7]} 53...
Ng6+ {[%clk 0:00:33.8]} 54. Kf5 {[%clk 0:00:06.8]} 54... Ne7+ {[%clk 0:00:20.4]}
55. Ke6 {[%clk 0:00:07.9]} 55... Ng8 {[%clk 0:00:21.9]} 56. Kf7 {[%clk
0:00:09.1]} 56... Kd1 {[%clk 0:00:23.4]} 57. Bg5 {[%clk 0:00:06.5]} 1-0

[Event "*** Titled Tuesday Blitz"]
[Site "Chess.com"]
[Date "2019.11.05"]
[Round "3"]
[White "liczner"]
[Black "Alex_Terzi"]
[Result "0-1"]
[WhiteElo "2791"]
[BlackElo "2511"]
[TimeControl "180+2"]
[EndTime "13:39:47 PST"]
[Termination "Alex_Terzi won by checkmate"]

1. e4 {[%clk 0:03:01.9]} 1... c5 {[%clk 0:03:00.4]} 2. Nf3 {[%clk 0:03:02]} 2...
Nc6 {[%clk 0:03:01.9]} 3. Nc3 {[%clk 0:03:01.4]} 3... g6 {[%clk 0:03:01.9]} 4.
d4 {[%clk 0:03:02.6]} 4... cxd4 {[%clk 0:03:02.4]} 5. Nxd4 {[%clk 0:03:04.5]}
5... Bg7 {[%clk 0:03:03.9]} 6. Nb3 {[%clk 0:03:06.1]} 6... Nf6 {[%clk
0:03:02.7]} 7. Be2 {[%clk 0:03:06.8]} 7... O-O {[%clk 0:03:01.7]} 8. O-O {[%clk
0:03:08.3]} 8... d6 {[%clk 0:03:02.3]} 9. Re1 {[%clk 0:03:09.2]} 9... a6 {[%clk
0:02:58.5]} 10. Bf1 {[%clk 0:03:04.9]} 10... b5 {[%clk 0:02:57.9]} 11. Nd5
{[%clk 0:03:04.2]} 11... Nxd5 {[%clk 0:02:44.8]} 12. exd5 {[%clk 0:03:04.7]}
12... Ne5 {[%clk 0:02:42]} 13. a4 {[%clk 0:02:53.5]} 13... Bd7 {[%clk
0:02:16.6]} 14. axb5 {[%clk 0:02:15.5]} 14... axb5 {[%clk 0:02:16.7]} 15. Rxa8
{[%clk 0:02:16.3]} 15... Qxa8 {[%clk 0:02:18.6]} 16. h3 {[%clk 0:02:12]} 16...
Re8 {[%clk 0:02:04.7]} 17. c3 {[%clk 0:01:48.5]} 17... Nc4 {[%clk 0:02:01.6]}
18. h4 {[%clk 0:01:33.7]} 18... Nb6 {[%clk 0:02:01.6]} 19. Nd4 {[%clk
0:01:16.6]} 19... Qxd5 {[%clk 0:01:58.4]} 20. Nxb5 {[%clk 0:01:16.6]} 20... Qxd1
{[%clk 0:01:39.8]} 21. Rxd1 {[%clk 0:01:18.5]} 21... Rb8 {[%clk 0:01:36.7]} 22.
Re1 {[%clk 0:00:57]} 22... Na4 {[%clk 0:01:30.3]} 23. c4 {[%clk 0:00:51.4]}
23... Kf8 {[%clk 0:01:20.1]} 24. Bg5 {[%clk 0:00:38.2]} 24... f6 {[%clk
0:01:20.6]} 25. Bc1 {[%clk 0:00:37.9]} 25... Nc5 {[%clk 0:00:51.5]} 26. Bf4
{[%clk 0:00:29]} 26... Bxb5 {[%clk 0:00:47.6]} 27. cxb5 {[%clk 0:00:29.4]} 27...
f5 {[%clk 0:00:49]} 28. b4 {[%clk 0:00:23.4]} 28... Ne4 {[%clk 0:00:49.6]} 29.
Rc1 {[%clk 0:00:19.7]} 29... Nc3 {[%clk 0:00:47.4]} 30. h5 {[%clk 0:00:15]}
30... Nxb5 {[%clk 0:00:44.7]} 31. Bd2 {[%clk 0:00:06]} 31... Nd4 {[%clk
0:00:32]} 32. h6 {[%clk 0:00:05.7]} 32... Bf6 {[%clk 0:00:32.1]} 33. Rc7 {[%clk
0:00:06.2]} 33... Nb3 {[%clk 0:00:30.9]} 34. Be1 {[%clk 0:00:07.2]} 34... Ke8
{[%clk 0:00:29.5]} 35. Bc4 {[%clk 0:00:06.3]} 35... Nd4 {[%clk 0:00:29.5]} 36.
Bg8 {[%clk 0:00:07.2]} 36... Kd8 {[%clk 0:00:28.8]} 37. Rc4 {[%clk 0:00:07.8]}
37... e5 {[%clk 0:00:24.2]} 38. Bxh7 {[%clk 0:00:08.6]} 38... Bg5 {[%clk
0:00:25.6]} 39. Bxg6 {[%clk 0:00:06.9]} 39... Bxh6 {[%clk 0:00:26.6]} 40. Kf1
{[%clk 0:00:07.3]} 40... Ke7 {[%clk 0:00:24.4]} 41. Bc3 {[%clk 0:00:08.2]} 41...
Kf6 {[%clk 0:00:25.5]} 42. Bxd4 {[%clk 0:00:06.7]} 42... exd4 {[%clk 0:00:27.4]}
43. Bh5 {[%clk 0:00:05.7]} 43... Ke5 {[%clk 0:00:28.2]} 44. Ke2 {[%clk
0:00:03.4]} 44... Ra8 {[%clk 0:00:28]} 45. Rc2 {[%clk 0:00:03.2]} 45... Ra3
{[%clk 0:00:26.8]} 46. Rb2 {[%clk 0:00:02.3]} 46... d3+ {[%clk 0:00:27.4]} 47.
Kf3 {[%clk 0:00:03.7]} 47... Ra1 {[%clk 0:00:20.1]} 48. Kg3 {[%clk 0:00:03.1]}
48... Bf4+ {[%clk 0:00:19.6]} 49. Kf3 {[%clk 0:00:03.8]} 49... d2 {[%clk
0:00:19.9]} 50. g3 {[%clk 0:00:04.2]} 50... d1=Q+ {[%clk 0:00:20.6]} 51. Kg2
{[%clk 0:00:05.1]} 51... Qh1# {[%clk 0:00:20.8]} 0-1